Workbook

Sheet Sheet2
A20: Choose FWHM: | D20: Choose object: | F20: Choose response: | I20: Choose an object and a response function.
A21: Gaussian | B21: 20 | I21: Enter the FWHM of the function you want to choose
A22: Triangle 1 | B22: 10 | I22: into the appropriate cell (B21 - B24) before you choose it.
A23: Triangle 2 | B23: 10 | I23: Then click the convolution button.
A24: Rectangle | B24: 20
I27: The calculations are done on sheet 1.
A29: x' = | B29: 44

Sheet Sheet1
B2: object | C2: norm. resp. | D2: response | E2: product | H2: convolution | K2: Gaussian | L2: Triangle 1 | M2: Triangle 2 | N2: Rectangle | O2: Triangle 2'
A3: -63.5 | B3: 0 | C3: =D3/D$131 -> 0 | D3: 0 | E3: =B3*C3 -> 0 | F3: 0 | G3: 0 | H3: 0 | J3: -63.5 | K3: =EXP(-((J3)^2/(Sheet2!B$21^2*0.360673760222241))) -> 7.273073891e-13 | L3: =IF(1-ABS(J3)/Sheet2!B$22 >0, 1-ABS(J3)/Sheet2!B$22,0) -> 0 | M3: 0 | N3: =IF(ABS(J3)<Sheet2!B$24/2, 1, 0) -> 0 | O3: 0
A4: =A3+1 -> -62.5 | B4: 0 | C4: =D4/D$131 -> 0.05 | D4: 1 | E4: =B4*C4 -> 0 | F4: 0 | G4: 1 | H4: 0 | J4: =J3+1 -> -62.5 | K4: =EXP(-((J4)^2/(Sheet2!B$21^2*0.360673760222241))) -> 1.74187022e-12 | L4: =IF(1-ABS(J4)/Sheet2!B$22 >0, 1-ABS(J4)/Sheet2!B$22,0) -> 0 | M4: 0 | N4: =IF(ABS(J4)<Sheet2!B$24/2, 1, 0) -> 0 | O4: 0
A5: =A4+1 -> -61.5 | B5: 0 | C5: 0.05 | D5: 1 | E5: 0 | F5: 0 | G5: 1 | H5: 0 | J5: =J4+1 -> -61.5 | K5: =EXP(-((J5)^2/(Sheet2!B$21^2*0.360673760222241))) -> 4.114271895e-12 | L5: =IF(1-ABS(J5)/Sheet2!B$22 >0, 1-ABS(J5)/Sheet2!B$22,0) -> 0 | M5: 0 | N5: =IF(ABS(J5)<Sheet2!B$24/2, 1, 0) -> 0 | O5: 0
A6: -60.5 | B6: 0 | C6: 0.05 | D6: 1 | E6: 0 | F6: 0 | G6: 1 | H6: 0 | J6: -60.5 | K6: =EXP(-((J6)^2/(Sheet2!B$21^2*0.360673760222241))) -> 9.58406132e-12 | L6: =IF(1-ABS(J6)/Sheet2!B$22 >0, 1-ABS(J6)/Sheet2!B$22,0) -> 0 | M6: 0 | N6: =IF(ABS(J6)<Sheet2!B$24/2, 1, 0) -> 0 | O6: 0
A7: -59.5 | B7: 0 | C7: 0.05 | D7: 1 | E7: 0 | F7: 0 | G7: 1 | H7: 0 | J7: -59.5 | K7: =EXP(-((J7)^2/(Sheet2!B$21^2*0.360673760222241))) -> 2.201839094e-11 | L7: =IF(1-ABS(J7)/Sheet2!B$22 >0, 1-ABS(J7)/Sheet2!B$22,0) -> 0 | M7: 0 | N7: =IF(ABS(J7)<Sheet2!B$24/2, 1, 0) -> 0 | O7: 0
A8: -58.5 | B8: 0 | C8: 0.05 | D8: 1 | E8: 0 | F8: 0 | G8: 1 | H8: 0 | J8: -58.5 | K8: =EXP(-((J8)^2/(Sheet2!B$21^2*0.360673760222241))) -> 4.988856056e-11 | L8: =IF(1-ABS(J8)/Sheet2!B$22 >0, 1-ABS(J8)/Sheet2!B$22,0) -> 0 | M8: 0 | N8: =IF(ABS(J8)<Sheet2!B$24/2, 1, 0) -> 0 | O8: 0
A9: -57.5 | B9: 0 | C9: 0.05 | D9: 1 | E9: 0 | F9: 0 | G9: 1 | H9: 0 | J9: -57.5 | K9: =EXP(-((J9)^2/(Sheet2!B$21^2*0.360673760222241))) -> 1.114796941e-10 | L9: =IF(1-ABS(J9)/Sheet2!B$22 >0, 1-ABS(J9)/Sheet2!B$22,0) -> 0 | M9: 0 | N9: =IF(ABS(J9)<Sheet2!B$24/2, 1, 0) -> 0 | O9: 0
A10: -56.5 | B10: 0 | C10: 0.05 | D10: 1 | E10: 0 | F10: 0 | G10: 1 | H10: 0 | J10: -56.5 | K10: =EXP(-((J10)^2/(Sheet2!B$21^2*0.360673760222241))) -> 2.456800905e-10 | L10: =IF(1-ABS(J10)/Sheet2!B$22 >0, 1-ABS(J10)/Sheet2!B$22,0) -> 0 | M10: 0 | N10: =IF(ABS(J10)<Sheet2!B$24/2, 1, 0) -> 0 | O10: 0
A11: -55.5 | B11: 0 | C11: 0.05 | D11: 1 | E11: 0 | F11: 0 | G11: 1 | H11: 0 | J11: -55.5 | K11: =EXP(-((J11)^2/(Sheet2!B$21^2*0.360673760222241))) -> 5.339782388e-10 | L11: =IF(1-ABS(J11)/Sheet2!B$22 >0, 1-ABS(J11)/Sheet2!B$22,0) -> 0 | M11: 0 | N11: =IF(ABS(J11)<Sheet2!B$24/2, 1, 0) -> 0 | O11: 0
A12: -54.5 | B12: 0 | C12: 0.05 | D12: 1 | E12: 0 | F12: 0 | G12: 1 | H12: 0 | J12: -54.5 | K12: =EXP(-((J12)^2/(Sheet2!B$21^2*0.360673760222241))) -> 1.144607412e-09 | L12: =IF(1-ABS(J12)/Sheet2!B$22 >0, 1-ABS(J12)/Sheet2!B$22,0) -> 0 | M12: 0 | N12: =IF(ABS(J12)<Sheet2!B$24/2, 1, 0) -> 0 | O12: 0
A13: -53.5 | B13: 0 | C13: 0.05 | D13: 1 | E13: 0 | F13: 0 | G13: 1 | H13: 0 | J13: -53.5 | K13: =EXP(-((J13)^2/(Sheet2!B$21^2*0.360673760222241))) -> 2.419741367e-09 | L13: =IF(1-ABS(J13)/Sheet2!B$22 >0, 1-ABS(J13)/Sheet2!B$22,0) -> 0 | M13: 0 | N13: =IF(ABS(J13)<Sheet2!B$24/2, 1, 0) -> 0 | O13: 0
A14: -52.5 | B14: 0 | C14: 0.05 | D14: 1 | E14: 0 | F14: 0 | G14: 1 | H14: 0 | J14: -52.5 | K14: =EXP(-((J14)^2/(Sheet2!B$21^2*0.360673760222241))) -> 5.044995051e-09 | L14: =IF(1-ABS(J14)/Sheet2!B$22 >0, 1-ABS(J14)/Sheet2!B$22,0) -> 0 | M14: 0 | N14: =IF(ABS(J14)<Sheet2!B$24/2, 1, 0) -> 0 | O14: 0
A15: -51.5 | B15: 0 | C15: 0.05 | D15: 1 | E15: 0 | F15: 0 | G15: 1 | H15: 0 | J15: -51.5 | K15: =EXP(-((J15)^2/(Sheet2!B$21^2*0.360673760222241))) -> 1.037365833e-08 | L15: =IF(1-ABS(J15)/Sheet2!B$22 >0, 1-ABS(J15)/Sheet2!B$22,0) -> 0 | M15: 0 | N15: =IF(ABS(J15)<Sheet2!B$24/2, 1, 0) -> 0 | O15: 0
A16: -50.5 | B16: 0 | C16: 0.05 | D16: 1 | E16: 0 | F16: 0 | G16: 1 | H16: 0 | J16: -50.5 | K16: =EXP(-((J16)^2/(Sheet2!B$21^2*0.360673760222241))) -> 2.103693842e-08 | L16: =IF(1-ABS(J16)/Sheet2!B$22 >0, 1-ABS(J16)/Sheet2!B$22,0) -> 0 | M16: 0 | N16: =IF(ABS(J16)<Sheet2!B$24/2, 1, 0) -> 0 | O16: 0
A17: -49.5 | B17: 0 | C17: 0.05 | D17: 1 | E17: 0 | F17: 0 | G17: 1 | H17: 0 | J17: -49.5 | K17: =EXP(-((J17)^2/(Sheet2!B$21^2*0.360673760222241))) -> 4.207387683e-08 | L17: =IF(1-ABS(J17)/Sheet2!B$22 >0, 1-ABS(J17)/Sheet2!B$22,0) -> 0 | M17: 0 | N17: =IF(ABS(J17)<Sheet2!B$24/2, 1, 0) -> 0 | O17: 0
A18: -48.5 | B18: 0 | C18: 0.05 | D18: 1 | E18: 0 | F18: 0 | G18: 1 | H18: 0 | J18: -48.5 | K18: =EXP(-((J18)^2/(Sheet2!B$21^2*0.360673760222241))) -> 8.298926667e-08 | L18: =IF(1-ABS(J18)/Sheet2!B$22 >0, 1-ABS(J18)/Sheet2!B$22,0) -> 0 | M18: 0 | N18: =IF(ABS(J18)<Sheet2!B$24/2, 1, 0) -> 0 | O18: 0
A19: -47.5 | B19: 0 | C19: 0.05 | D19: 1 | E19: 0 | F19: 0 | G19: 1 | H19: 0 | J19: -47.5 | K19: =EXP(-((J19)^2/(Sheet2!B$21^2*0.360673760222241))) -> 1.614398416e-07 | L19: =IF(1-ABS(J19)/Sheet2!B$22 >0, 1-ABS(J19)/Sheet2!B$22,0) -> 0 | M19: 0 | N19: =IF(ABS(J19)<Sheet2!B$24/2, 1, 0) -> 0 | O19: 0
A20: -46.5 | B20: 0 | C20: 0.05 | D20: 1 | E20: 0 | F20: 0 | G20: 1 | H20: 0 | J20: -46.5 | K20: =EXP(-((J20)^2/(Sheet2!B$21^2*0.360673760222241))) -> 3.09726895e-07 | L20: =IF(1-ABS(J20)/Sheet2!B$22 >0, 1-ABS(J20)/Sheet2!B$22,0) -> 0 | M20: 0 | N20: =IF(ABS(J20)<Sheet2!B$24/2, 1, 0) -> 0 | O20: 0
A21: -45.5 | B21: 0 | C21: 0.05 | D21: 1 | E21: 0 | F21: 0 | G21: 1 | H21: 0 | J21: -45.5 | K21: =EXP(-((J21)^2/(Sheet2!B$21^2*0.360673760222241))) -> 5.860389948e-07 | L21: =IF(1-ABS(J21)/Sheet2!B$22 >0, 1-ABS(J21)/Sheet2!B$22,0) -> 0 | M21: 0 | N21: =IF(ABS(J21)<Sheet2!B$24/2, 1, 0) -> 0 | O21: 0
A22: -44.5 | B22: 0 | C22: 0.05 | D22: 1 | E22: 0 | F22: 0 | G22: 1 | H22: 0 | J22: -44.5 | K22: =EXP(-((J22)^2/(Sheet2!B$21^2*0.360673760222241))) -> 1.093587433e-06 | L22: =IF(1-ABS(J22)/Sheet2!B$22 >0, 1-ABS(J22)/Sheet2!B$22,0) -> 0 | M22: 0 | N22: =IF(ABS(J22)<Sheet2!B$24/2, 1, 0) -> 0 | O22: 0
A23: -43.5 | B23: 0 | C23: 0.05 | D23: 1 | E23: 0 | F23: 0 | G23: 1 | H23: 0 | J23: -43.5 | K23: =EXP(-((J23)^2/(Sheet2!B$21^2*0.360673760222241))) -> 2.012611301e-06 | L23: =IF(1-ABS(J23)/Sheet2!B$22 >0, 1-ABS(J23)/Sheet2!B$22,0) -> 0 | M23: 0 | N23: =IF(ABS(J23)<Sheet2!B$24/2, 1, 0) -> 0 | O23: 0
A24: -42.5 | B24: 0 | C24: 0 | D24: 0 | E24: 0 | F24: 0 | G24: 0 | H24: 0 | J24: -42.5 | K24: =EXP(-((J24)^2/(Sheet2!B$21^2*0.360673760222241))) -> 3.652966616e-06 | L24: =IF(1-ABS(J24)/Sheet2!B$22 >0, 1-ABS(J24)/Sheet2!B$22,0) -> 0 | M24: 0 | N24: =IF(ABS(J24)<Sheet2!B$24/2, 1, 0) -> 0 | O24: 0
A25: -41.5 | B25: 0 | C25: 0 | D25: 0 | E25: 0 | F25: 0 | G25: 0 | H25: 0 | J25: -41.5 | K25: =EXP(-((J25)^2/(Sheet2!B$21^2*0.360673760222241))) -> 6.53899341e-06 | L25: =IF(1-ABS(J25)/Sheet2!B$22 >0, 1-ABS(J25)/Sheet2!B$22,0) -> 0 | M25: 0 | N25: =IF(ABS(J25)<Sheet2!B$24/2, 1, 0) -> 0 | O25: 0
A26: -40.5 | B26: 0 | C26: 0 | D26: 0 | E26: 0 | F26: 0 | G26: 0 | H26: 0 | J26: -40.5 | K26: =EXP(-((J26)^2/(Sheet2!B$21^2*0.360673760222241))) -> 1.154397815e-05 | L26: =IF(1-ABS(J26)/Sheet2!B$22 >0, 1-ABS(J26)/Sheet2!B$22,0) -> 0 | M26: 0 | N26: =IF(ABS(J26)<Sheet2!B$24/2, 1, 0) -> 0 | O26: 0
A27: -39.5 | B27: 0 | C27: 0 | D27: 0 | E27: 0 | F27: 0 | G27: 0 | H27: 0 | J27: -39.5 | K27: =EXP(-((J27)^2/(Sheet2!B$21^2*0.360673760222241))) -> 2.009923336e-05 | L27: =IF(1-ABS(J27)/Sheet2!B$22 >0, 1-ABS(J27)/Sheet2!B$22,0) -> 0 | M27: 0 | N27: =IF(ABS(J27)<Sheet2!B$24/2, 1, 0) -> 0 | O27: 0
A28: -38.5 | B28: 0 | C28: 0 | D28: 0 | E28: 0 | F28: 0 | G28: 0 | H28: 0 | J28: -38.5 | K28: =EXP(-((J28)^2/(Sheet2!B$21^2*0.360673760222241))) -> 3.451301413e-05 | L28: =IF(1-ABS(J28)/Sheet2!B$22 >0, 1-ABS(J28)/Sheet2!B$22,0) -> 0 | M28: 0 | N28: =IF(ABS(J28)<Sheet2!B$24/2, 1, 0) -> 0 | O28: 0
A29: -37.5 | B29: 0 | C29: 0 | D29: 0 | E29: 0 | F29: 0 | G29: 0 | H29: 0 | J29: -37.5 | K29: =EXP(-((J29)^2/(Sheet2!B$21^2*0.360673760222241))) -> 5.844746586e-05 | L29: =IF(1-ABS(J29)/Sheet2!B$22 >0, 1-ABS(J29)/Sheet2!B$22,0) -> 0 | M29: 0 | N29: =IF(ABS(J29)<Sheet2!B$24/2, 1, 0) -> 0 | O29: 0
A30: -36.5 | B30: 0 | C30: 0 | D30: 0 | E30: 0 | F30: 0 | G30: 0 | H30: 0 | J30: -36.5 | K30: =EXP(-((J30)^2/(Sheet2!B$21^2*0.360673760222241))) -> 9.761754533e-05 | L30: =IF(1-ABS(J30)/Sheet2!B$22 >0, 1-ABS(J30)/Sheet2!B$22,0) -> 0 | M30: 0 | N30: =IF(ABS(J30)<Sheet2!B$24/2, 1, 0) -> 0 | O30: 0
A31: -35.5 | B31: 0 | C31: 0 | D31: 0 | E31: 0 | F31: 0 | G31: 0 | H31: 0 | J31: -35.5 | K31: =EXP(-((J31)^2/(Sheet2!B$21^2*0.360673760222241))) -> 0.0001607938669 | L31: =IF(1-ABS(J31)/Sheet2!B$22 >0, 1-ABS(J31)/Sheet2!B$22,0) -> 0 | M31: 0 | N31: =IF(ABS(J31)<Sheet2!B$24/2, 1, 0) -> 0 | O31: 0
A32: -34.5 | B32: 0 | C32: 0 | D32: 0 | E32: 0 | F32: 0 | G32: 0 | H32: 0 | J32: -34.5 | K32: =EXP(-((J32)^2/(Sheet2!B$21^2*0.360673760222241))) -> 0.0002612104074 | L32: =IF(1-ABS(J32)/Sheet2!B$22 >0, 1-ABS(J32)/Sheet2!B$22,0) -> 0 | M32: 0 | N32: =IF(ABS(J32)<Sheet2!B$24/2, 1, 0) -> 0 | O32: 0
A33: -33.5 | B33: 0 | C33: 0 | D33: 0 | E33: 0 | F33: 0 | G33: 0 | H33: 0 | J33: -33.5 | K33: =EXP(-((J33)^2/(Sheet2!B$21^2*0.360673760222241))) -> 0.0004184955782 | L33: =IF(1-ABS(J33)/Sheet2!B$22 >0, 1-ABS(J33)/Sheet2!B$22,0) -> 0 | M33: 0 | N33: =IF(ABS(J33)<Sheet2!B$24/2, 1, 0) -> 0 | O33: 0
A34: -32.5 | B34: 0 | C34: 0 | D34: 0 | E34: 0 | F34: 0 | G34: 0 | H34: 0 | J34: -32.5 | K34: =EXP(-((J34)^2/(Sheet2!B$21^2*0.360673760222241))) -> 0.0006612575913 | L34: =IF(1-ABS(J34)/Sheet2!B$22 >0, 1-ABS(J34)/Sheet2!B$22,0) -> 0 | M34: 0 | N34: =IF(ABS(J34)<Sheet2!B$24/2, 1, 0) -> 0 | O34: 0
A35: -31.5 | B35: 0 | C35: 0 | D35: 0 | E35: 0 | F35: 0 | G35: 0 | H35: 0 | J35: -31.5 | K35: =EXP(-((J35)^2/(Sheet2!B$21^2*0.360673760222241))) -> 0.001030456986 | L35: =IF(1-ABS(J35)/Sheet2!B$22 >0, 1-ABS(J35)/Sheet2!B$22,0) -> 0 | M35: 0 | N35: =IF(ABS(J35)<Sheet2!B$24/2, 1, 0) -> 0 | O35: 0
A36: -30.5 | B36: 0 | C36: 0 | D36: 0 | E36: 0 | F36: 0 | G36: 0 | H36: 0 | J36: -30.5 | K36: =EXP(-((J36)^2/(Sheet2!B$21^2*0.360673760222241))) -> 0.001583683768 | L36: =IF(1-ABS(J36)/Sheet2!B$22 >0, 1-ABS(J36)/Sheet2!B$22,0) -> 0 | M36: 0 | N36: =IF(ABS(J36)<Sheet2!B$24/2, 1, 0) -> 0 | O36: 0
A37: -29.5 | B37: 0 | C37: 0 | D37: 0 | E37: 0 | F37: 0 | G37: 0 | H37: 0 | J37: -29.5 | K37: =EXP(-((J37)^2/(Sheet2!B$21^2*0.360673760222241))) -> 0.002400415723 | L37: =IF(1-ABS(J37)/Sheet2!B$22 >0, 1-ABS(J37)/Sheet2!B$22,0) -> 0 | M37: 0 | N37: =IF(ABS(J37)<Sheet2!B$24/2, 1, 0) -> 0 | O37: 0
A38: -28.5 | B38: 0 | C38: 0 | D38: 0 | E38: 0 | F38: 0 | G38: 0 | H38: 0 | J38: -28.5 | K38: =EXP(-((J38)^2/(Sheet2!B$21^2*0.360673760222241))) -> 0.00358825964 | L38: =IF(1-ABS(J38)/Sheet2!B$22 >0, 1-ABS(J38)/Sheet2!B$22,0) -> 0 | M38: 0 | N38: =IF(ABS(J38)<Sheet2!B$24/2, 1, 0) -> 0 | O38: 0
A39: -27.5 | B39: 0 | C39: 0 | D39: 0 | E39: 0 | F39: 0 | G39: 0 | H39: 0 | J39: -27.5 | K39: =EXP(-((J39)^2/(Sheet2!B$21^2*0.360673760222241))) -> 0.00529006073 | L39: =IF(1-ABS(J39)/Sheet2!B$22 >0, 1-ABS(J39)/Sheet2!B$22,0) -> 0 | M39: 0 | N39: =IF(ABS(J39)<Sheet2!B$24/2, 1, 0) -> 0 | O39: 0
A40: -26.5 | B40: 0 | C40: 0 | D40: 0 | E40: 0 | F40: 0 | G40: 0 | H40: 0 | J40: -26.5 | K40: =EXP(-((J40)^2/(Sheet2!B$21^2*0.360673760222241))) -> 0.007691602917 | L40: =IF(1-ABS(J40)/Sheet2!B$22 >0, 1-ABS(J40)/Sheet2!B$22,0) -> 0 | M40: 0 | N40: =IF(ABS(J40)<Sheet2!B$24/2, 1, 0) -> 0 | O40: 0
A41: -25.5 | B41: 0 | C41: 0 | D41: 0 | E41: 0 | F41: 0 | G41: 0 | H41: 0 | J41: -25.5 | K41: =EXP(-((J41)^2/(Sheet2!B$21^2*0.360673760222241))) -> 0.01102941437 | L41: =IF(1-ABS(J41)/Sheet2!B$22 >0, 1-ABS(J41)/Sheet2!B$22,0) -> 0 | M41: 0 | N41: =IF(ABS(J41)<Sheet2!B$24/2, 1, 0) -> 0 | O41: 0
A42: -24.5 | B42: 0 | C42: 0 | D42: 0 | E42: 0 | F42: 0 | G42: 0 | H42: 0 | J42: -24.5 | K42: =EXP(-((J42)^2/(Sheet2!B$21^2*0.360673760222241))) -> 0.01559794738 | L42: =IF(1-ABS(J42)/Sheet2!B$22 >0, 1-ABS(J42)/Sheet2!B$22,0) -> 0 | M42: 0 | N42: =IF(ABS(J42)<Sheet2!B$24/2, 1, 0) -> 0 | O42: 0
A43: -23.5 | B43: 0 | C43: 0 | D43: 0 | E43: 0 | F43: 0 | G43: 0 | H43: 0 | J43: -23.5 | K43: =EXP(-((J43)^2/(Sheet2!B$21^2*0.360673760222241))) -> 0.02175513832 | L43: =IF(1-ABS(J43)/Sheet2!B$22 >0, 1-ABS(J43)/Sheet2!B$22,0) -> 0 | M43: 0 | N43: =IF(ABS(J43)<Sheet2!B$24/2, 1, 0) -> 0 | O43: 0
A44: -22.5 | B44: 0 | C44: 0 | D44: 0 | E44: 0 | F44: 0 | G44: 0 | H44: 0 | J44: -22.5 | K44: =EXP(-((J44)^2/(Sheet2!B$21^2*0.360673760222241))) -> 0.02992510252 | L44: =IF(1-ABS(J44)/Sheet2!B$22 >0, 1-ABS(J44)/Sheet2!B$22,0) -> 0 | M44: 0 | N44: =IF(ABS(J44)<Sheet2!B$24/2, 1, 0) -> 0 | O44: 0
A45: -21.5 | B45: 0 | C45: 0 | D45: 0 | E45: 0 | F45: 0 | G45: 0 | H45: 0 | J45: -21.5 | K45: =EXP(-((J45)^2/(Sheet2!B$21^2*0.360673760222241))) -> 0.04059652358 | L45: =IF(1-ABS(J45)/Sheet2!B$22 >0, 1-ABS(J45)/Sheet2!B$22,0) -> 0 | M45: 0 | N45: =IF(ABS(J45)<Sheet2!B$24/2, 1, 0) -> 0 | O45: 0
A46: -20.5 | B46: 0 | C46: 0 | D46: 0 | E46: 0 | F46: 0 | G46: 0 | H46: 0 | J46: -20.5 | K46: =EXP(-((J46)^2/(Sheet2!B$21^2*0.360673760222241))) -> 0.05431520753 | L46: =IF(1-ABS(J46)/Sheet2!B$22 >0, 1-ABS(J46)/Sheet2!B$22,0) -> 0 | M46: 0 | N46: =IF(ABS(J46)<Sheet2!B$24/2, 1, 0) -> 0 | O46: 0
A47: -19.5 | B47: 0 | C47: 0 | D47: 0 | E47: 0 | F47: 0 | G47: 0 | H47: 0 | J47: -19.5 | K47: =EXP(-((J47)^2/(Sheet2!B$21^2*0.360673760222241))) -> 0.07166934601 | L47: =IF(1-ABS(J47)/Sheet2!B$22 >0, 1-ABS(J47)/Sheet2!B$22,0) -> 0 | M47: 0 | N47: =IF(ABS(J47)<Sheet2!B$24/2, 1, 0) -> 0 | O47: 0
A48: -18.5 | B48: 0 | C48: 0 | D48: 0 | E48: 0 | F48: 0 | G48: 0 | H48: 0 | J48: -18.5 | K48: =EXP(-((J48)^2/(Sheet2!B$21^2*0.360673760222241))) -> 0.09326631971 | L48: =IF(1-ABS(J48)/Sheet2!B$22 >0, 1-ABS(J48)/Sheet2!B$22,0) -> 0 | M48: 0 | N48: =IF(ABS(J48)<Sheet2!B$24/2, 1, 0) -> 0 | O48: 0
A49: -17.5 | B49: 0 | C49: 0 | D49: 0 | E49: 0 | F49: 0 | G49: 0 | H49: 0 | J49: -17.5 | K49: =EXP(-((J49)^2/(Sheet2!B$21^2*0.360673760222241))) -> 0.1197004101 | L49: =IF(1-ABS(J49)/Sheet2!B$22 >0, 1-ABS(J49)/Sheet2!B$22,0) -> 0 | M49: 0 | N49: =IF(ABS(J49)<Sheet2!B$24/2, 1, 0) -> 0 | O49: 0
A50: -16.5 | B50: 0 | C50: 0 | D50: 0 | E50: 0 | F50: 0 | G50: 0 | H50: 0 | J50: -16.5 | K50: =EXP(-((J50)^2/(Sheet2!B$21^2*0.360673760222241))) -> 0.1515115834 | L50: =IF(1-ABS(J50)/Sheet2!B$22 >0, 1-ABS(J50)/Sheet2!B$22,0) -> 0 | M50: 0 | N50: =IF(ABS(J50)<Sheet2!B$24/2, 1, 0) -> 0 | O50: 0
A51: -15.5 | B51: 0 | C51: 0 | D51: 0 | E51: 0 | F51: 0 | G51: 0 | H51: 0 | J51: -15.5 | K51: =EXP(-((J51)^2/(Sheet2!B$21^2*0.360673760222241))) -> 0.189136538 | L51: =IF(1-ABS(J51)/Sheet2!B$22 >0, 1-ABS(J51)/Sheet2!B$22,0) -> 0 | M51: 0 | N51: =IF(ABS(J51)<Sheet2!B$24/2, 1, 0) -> 0 | O51: 0
A52: -14.5 | B52: 0 | C52: 0 | D52: 0 | E52: 0 | F52: 0 | G52: 0 | H52: 0 | J52: -14.5 | K52: =EXP(-((J52)^2/(Sheet2!B$21^2*0.360673760222241))) -> 0.2328543922 | L52: =IF(1-ABS(J52)/Sheet2!B$22 >0, 1-ABS(J52)/Sheet2!B$22,0) -> 0 | M52: 0 | N52: =IF(ABS(J52)<Sheet2!B$24/2, 1, 0) -> 0 | O52: 0
A53: -13.5 | B53: 0 | C53: 0 | D53: 0 | E53: 0 | F53: 0 | G53: 0 | H53: 0 | J53: -13.5 | K53: =EXP(-((J53)^2/(Sheet2!B$21^2*0.360673760222241))) -> 0.2827306118 | L53: =IF(1-ABS(J53)/Sheet2!B$22 >0, 1-ABS(J53)/Sheet2!B$22,0) -> 0 | M53: 0 | N53: =IF(ABS(J53)<Sheet2!B$24/2, 1, 0) -> 0 | O53: 0
A54: -12.5 | B54: 0 | C54: 0 | D54: 0 | E54: 0 | F54: 0 | G54: 0 | H54: 0 | J54: -12.5 | K54: =EXP(-((J54)^2/(Sheet2!B$21^2*0.360673760222241))) -> 0.3385638867 | L54: =IF(1-ABS(J54)/Sheet2!B$22 >0, 1-ABS(J54)/Sheet2!B$22,0) -> 0 | M54: 0 | N54: =IF(ABS(J54)<Sheet2!B$24/2, 1, 0) -> 0 | O54: 0
A55: -11.5 | B55: 0 | C55: 0 | D55: 0 | E55: 0 | F55: 0 | G55: 0 | H55: 0 | J55: -11.5 | K55: =EXP(-((J55)^2/(Sheet2!B$21^2*0.360673760222241))) -> 0.3998414657 | L55: =IF(1-ABS(J55)/Sheet2!B$22 >0, 1-ABS(J55)/Sheet2!B$22,0) -> 0 | M55: 0 | N55: =IF(ABS(J55)<Sheet2!B$24/2, 1, 0) -> 0 | O55: 0
A56: -10.5 | B56: 0 | C56: 0 | D56: 0 | E56: 0 | F56: 0 | G56: 0 | H56: 0 | J56: -10.5 | K56: =EXP(-((J56)^2/(Sheet2!B$21^2*0.360673760222241))) -> 0.4657087843 | L56: =IF(1-ABS(J56)/Sheet2!B$22 >0, 1-ABS(J56)/Sheet2!B$22,0) -> 0 | M56: 0 | N56: =IF(ABS(J56)<Sheet2!B$24/2, 1, 0) -> 0 | O56: 0
A57: -9.5 | B57: 1 | C57: 0 | D57: 0 | E57: 0 | F57: 0 | G57: 0 | H57: 0 | J57: -9.5 | K57: =EXP(-((J57)^2/(Sheet2!B$21^2*0.360673760222241))) -> 0.5349589145 | L57: =IF(1-ABS(J57)/Sheet2!B$22 >0, 1-ABS(J57)/Sheet2!B$22,0) -> 0.05 | M57: 0 | N57: =IF(ABS(J57)<Sheet2!B$24/2, 1, 0) -> 1 | O57: 0
A58: -8.5 | B58: 1 | C58: 0 | D58: 0 | E58: 0 | F58: 0 | G58: 0 | H58: 0 | J58: -8.5 | K58: =EXP(-((J58)^2/(Sheet2!B$21^2*0.360673760222241))) -> 0.6060463335 | L58: =IF(1-ABS(J58)/Sheet2!B$22 >0, 1-ABS(J58)/Sheet2!B$22,0) -> 0.15 | M58: 0 | N58: =IF(ABS(J58)<Sheet2!B$24/2, 1, 0) -> 1 | O58: 0
A59: -7.5 | B59: 1 | C59: 0 | D59: 0 | E59: 0 | F59: 0 | G59: 0 | H59: 0 | J59: -7.5 | K59: =EXP(-((J59)^2/(Sheet2!B$21^2*0.360673760222241))) -> 0.6771277735 | L59: =IF(1-ABS(J59)/Sheet2!B$22 >0, 1-ABS(J59)/Sheet2!B$22,0) -> 0.25 | M59: 0 | N59: =IF(ABS(J59)<Sheet2!B$24/2, 1, 0) -> 1 | O59: 0
A60: -6.5 | B60: 1 | C60: 0 | D60: 0 | E60: 0 | F60: 0 | G60: 0 | H60: 0 | J60: -6.5 | K60: =EXP(-((J60)^2/(Sheet2!B$21^2*0.360673760222241))) -> 0.7461305577 | L60: =IF(1-ABS(J60)/Sheet2!B$22 >0, 1-ABS(J60)/Sheet2!B$22,0) -> 0.35 | M60: 0 | N60: =IF(ABS(J60)<Sheet2!B$24/2, 1, 0) -> 1 | O60: 0
A61: -5.5 | B61: 1 | C61: 0 | D61: 0 | E61: 0 | F61: 0 | G61: 0 | H61: 0 | J61: -5.5 | K61: =EXP(-((J61)^2/(Sheet2!B$21^2*0.360673760222241))) -> 0.810846089 | L61: =IF(1-ABS(J61)/Sheet2!B$22 >0, 1-ABS(J61)/Sheet2!B$22,0) -> 0.45 | M61: 0 | N61: =IF(ABS(J61)<Sheet2!B$24/2, 1, 0) -> 1 | O61: 0
A62: -4.5 | B62: 1 | C62: 0 | D62: 0 | E62: 0 | F62: 0 | G62: 0 | H62: 0 | J62: -4.5 | K62: =EXP(-((J62)^2/(Sheet2!B$21^2*0.360673760222241))) -> 0.8690433204 | L62: =IF(1-ABS(J62)/Sheet2!B$22 >0, 1-ABS(J62)/Sheet2!B$22,0) -> 0.55 | M62: 0 | N62: =IF(ABS(J62)<Sheet2!B$24/2, 1, 0) -> 1 | O62: 0
A63: -3.5 | B63: 1 | C63: 0 | D63: 0 | E63: 0 | F63: 0 | G63: 0 | H63: 0 | J63: -3.5 | K63: =EXP(-((J63)^2/(Sheet2!B$21^2*0.360673760222241))) -> 0.9185944677 | L63: =IF(1-ABS(J63)/Sheet2!B$22 >0, 1-ABS(J63)/Sheet2!B$22,0) -> 0.65 | M63: 0 | N63: =IF(ABS(J63)<Sheet2!B$24/2, 1, 0) -> 1 | O63: 0
A64: -2.5 | B64: 1 | C64: 0 | D64: 0 | E64: 0 | F64: 0 | G64: 0 | H64: 0 | J64: -2.5 | K64: =EXP(-((J64)^2/(Sheet2!B$21^2*0.360673760222241))) -> 0.9576032807 | L64: =IF(1-ABS(J64)/Sheet2!B$22 >0, 1-ABS(J64)/Sheet2!B$22,0) -> 0.75 | M64: 0 | N64: =IF(ABS(J64)<Sheet2!B$24/2, 1, 0) -> 1 | O64: 0
A65: -1.5 | B65: 1 | C65: 0 | D65: 0 | E65: 0 | F65: 0 | G65: 0 | H65: 0 | J65: -1.5 | K65: =EXP(-((J65)^2/(Sheet2!B$21^2*0.360673760222241))) -> 0.9845251733 | L65: =IF(1-ABS(J65)/Sheet2!B$22 >0, 1-ABS(J65)/Sheet2!B$22,0) -> 0.85 | M65: 0 | N65: =IF(ABS(J65)<Sheet2!B$24/2, 1, 0) -> 1 | O65: 0
A66: -0.5 | B66: 1 | C66: 0 | D66: 0 | E66: 0 | F66: 0 | G66: 0 | H66: 0 | J66: -0.5 | K66: =EXP(-((J66)^2/(Sheet2!B$21^2*0.360673760222241))) -> 0.9982686326 | L66: =IF(1-ABS(J66)/Sheet2!B$22 >0, 1-ABS(J66)/Sheet2!B$22,0) -> 0.95 | M66: 0 | N66: =IF(ABS(J66)<Sheet2!B$24/2, 1, 0) -> 1 | O66: 0
A67: 0.5 | B67: 1 | C67: 0 | D67: 0 | E67: 0 | F67: 0 | G67: 0 | H67: 0 | J67: 0.5 | K67: =EXP(-((J67)^2/(Sheet2!B$21^2*0.360673760222241))) -> 0.9982686326 | L67: =IF(1-ABS(J67)/Sheet2!B$22 >0, 1-ABS(J67)/Sheet2!B$22,0) -> 0.95 | M67: =IF(1-J67/(Sheet2!B$23*2)>0,1-J67/(Sheet2!B$23*2),0) -> 0.975 | N67: =IF(ABS(J67)<Sheet2!B$24/2, 1, 0) -> 1 | O67: =IF(J67/(Sheet2!B$23*2)<1,J67/(Sheet2!B$23*2),0) -> 0.025
A68: 1.5 | B68: 1 | C68: =D68/D$131 -> 0 | D68: 0 | E68: =B68*C68 -> 0 | F68: 0 | G68: 0 | H68: 0 | J68: 1.5 | K68: =EXP(-((J68)^2/(Sheet2!B$21^2*0.360673760222241))) -> 0.9845251733 | L68: =IF(1-ABS(J68)/Sheet2!B$22 >0, 1-ABS(J68)/Sheet2!B$22,0) -> 0.85 | M68: =IF(1-J68/(Sheet2!B$23*2)>0,1-J68/(Sheet2!B$23*2),0) -> 0.925 | N68: =IF(ABS(J68)<Sheet2!B$24/2, 1, 0) -> 1 | O68: =IF(J68/(Sheet2!B$23*2)<1,J68/(Sheet2!B$23*2),0) -> 0.075
A69: =A68+1 -> 2.5 | B69: 1 | C69: 0 | D69: 0 | E69: 0 | F69: 0 | G69: 0 | H69: 0 | J69: =J68+1 -> 2.5 | K69: =EXP(-((J69)^2/(Sheet2!B$21^2*0.360673760222241))) -> 0.9576032807 | L69: =IF(1-ABS(J69)/Sheet2!B$22 >0, 1-ABS(J69)/Sheet2!B$22,0) -> 0.75 | M69: =IF(1-J69/(Sheet2!B$23*2)>0,1-J69/(Sheet2!B$23*2),0) -> 0.875 | N69: =IF(ABS(J69)<Sheet2!B$24/2, 1, 0) -> 1 | O69: =IF(J69/(Sheet2!B$23*2)<1,J69/(Sheet2!B$23*2),0) -> 0.125
A70: 3.5 | B70: 1 | C70: 0 | D70: 0 | E70: 0 | F70: 0 | G70: 0 | H70: 0 | J70: 3.5 | K70: =EXP(-((J70)^2/(Sheet2!B$21^2*0.360673760222241))) -> 0.9185944677 | L70: =IF(1-ABS(J70)/Sheet2!B$22 >0, 1-ABS(J70)/Sheet2!B$22,0) -> 0.65 | M70: =IF(1-J70/(Sheet2!B$23*2)>0,1-J70/(Sheet2!B$23*2),0) -> 0.825 | N70: =IF(ABS(J70)<Sheet2!B$24/2, 1, 0) -> 1 | O70: =IF(J70/(Sheet2!B$23*2)<1,J70/(Sheet2!B$23*2),0) -> 0.175
A71: 4.5 | B71: 1 | C71: 0 | D71: 0 | E71: 0 | F71: 0 | G71: 0 | H71: 0 | J71: 4.5 | K71: =EXP(-((J71)^2/(Sheet2!B$21^2*0.360673760222241))) -> 0.8690433204 | L71: =IF(1-ABS(J71)/Sheet2!B$22 >0, 1-ABS(J71)/Sheet2!B$22,0) -> 0.55 | M71: =IF(1-J71/(Sheet2!B$23*2)>0,1-J71/(Sheet2!B$23*2),0) -> 0.775 | N71: =IF(ABS(J71)<Sheet2!B$24/2, 1, 0) -> 1 | O71: =IF(J71/(Sheet2!B$23*2)<1,J71/(Sheet2!B$23*2),0) -> 0.225
A72: 5.5 | B72: 1 | C72: 0 | D72: 0 | E72: 0 | F72: 0 | G72: 0 | H72: 0 | J72: 5.5 | K72: =EXP(-((J72)^2/(Sheet2!B$21^2*0.360673760222241))) -> 0.810846089 | L72: =IF(1-ABS(J72)/Sheet2!B$22 >0, 1-ABS(J72)/Sheet2!B$22,0) -> 0.45 | M72: =IF(1-J72/(Sheet2!B$23*2)>0,1-J72/(Sheet2!B$23*2),0) -> 0.725 | N72: =IF(ABS(J72)<Sheet2!B$24/2, 1, 0) -> 1 | O72: =IF(J72/(Sheet2!B$23*2)<1,J72/(Sheet2!B$23*2),0) -> 0.275
A73: 6.5 | B73: 1 | C73: 0 | D73: 0 | E73: 0 | F73: 0 | G73: 0 | H73: 0 | J73: 6.5 | K73: =EXP(-((J73)^2/(Sheet2!B$21^2*0.360673760222241))) -> 0.7461305577 | L73: =IF(1-ABS(J73)/Sheet2!B$22 >0, 1-ABS(J73)/Sheet2!B$22,0) -> 0.35 | M73: =IF(1-J73/(Sheet2!B$23*2)>0,1-J73/(Sheet2!B$23*2),0) -> 0.675 | N73: =IF(ABS(J73)<Sheet2!B$24/2, 1, 0) -> 1 | O73: =IF(J73/(Sheet2!B$23*2)<1,J73/(Sheet2!B$23*2),0) -> 0.325
A74: 7.5 | B74: 1 | C74: 0 | D74: 0 | E74: 0 | F74: 0 | G74: 0 | H74: 0 | J74: 7.5 | K74: =EXP(-((J74)^2/(Sheet2!B$21^2*0.360673760222241))) -> 0.6771277735 | L74: =IF(1-ABS(J74)/Sheet2!B$22 >0, 1-ABS(J74)/Sheet2!B$22,0) -> 0.25 | M74: =IF(1-J74/(Sheet2!B$23*2)>0,1-J74/(Sheet2!B$23*2),0) -> 0.625 | N74: =IF(ABS(J74)<Sheet2!B$24/2, 1, 0) -> 1 | O74: =IF(J74/(Sheet2!B$23*2)<1,J74/(Sheet2!B$23*2),0) -> 0.375
A75: 8.5 | B75: 1 | C75: 0 | D75: 0 | E75: 0 | F75: 0 | G75: 0 | H75: 0 | J75: 8.5 | K75: =EXP(-((J75)^2/(Sheet2!B$21^2*0.360673760222241))) -> 0.6060463335 | L75: =IF(1-ABS(J75)/Sheet2!B$22 >0, 1-ABS(J75)/Sheet2!B$22,0) -> 0.15 | M75: =IF(1-J75/(Sheet2!B$23*2)>0,1-J75/(Sheet2!B$23*2),0) -> 0.575 | N75: =IF(ABS(J75)<Sheet2!B$24/2, 1, 0) -> 1 | O75: =IF(J75/(Sheet2!B$23*2)<1,J75/(Sheet2!B$23*2),0) -> 0.425
A76: 9.5 | B76: 1 | C76: 0 | D76: 0 | E76: 0 | F76: 0 | G76: 0 | H76: 0 | J76: 9.5 | K76: =EXP(-((J76)^2/(Sheet2!B$21^2*0.360673760222241))) -> 0.5349589145 | L76: =IF(1-ABS(J76)/Sheet2!B$22 >0, 1-ABS(J76)/Sheet2!B$22,0) -> 0.05 | M76: =IF(1-J76/(Sheet2!B$23*2)>0,1-J76/(Sheet2!B$23*2),0) -> 0.525 | N76: =IF(ABS(J76)<Sheet2!B$24/2, 1, 0) -> 1 | O76: =IF(J76/(Sheet2!B$23*2)<1,J76/(Sheet2!B$23*2),0) -> 0.475
A77: 10.5 | B77: 0 | C77: 0 | D77: 0 | E77: 0 | F77: 0 | G77: 0 | H77: 0 | J77: 10.5 | K77: =EXP(-((J77)^2/(Sheet2!B$21^2*0.360673760222241))) -> 0.4657087843 | L77: =IF(1-ABS(J77)/Sheet2!B$22 >0, 1-ABS(J77)/Sheet2!B$22,0) -> 0 | M77: =IF(1-J77/(Sheet2!B$23*2)>0,1-J77/(Sheet2!B$23*2),0) -> 0.475 | N77: =IF(ABS(J77)<Sheet2!B$24/2, 1, 0) -> 0 | O77: =IF(J77/(Sheet2!B$23*2)<1,J77/(Sheet2!B$23*2),0) -> 0.525
A78: 11.5 | B78: 0 | C78: 0 | D78: 0 | E78: 0 | F78: 0 | G78: 0 | H78: 0 | J78: 11.5 | K78: =EXP(-((J78)^2/(Sheet2!B$21^2*0.360673760222241))) -> 0.3998414657 | L78: =IF(1-ABS(J78)/Sheet2!B$22 >0, 1-ABS(J78)/Sheet2!B$22,0) -> 0 | M78: =IF(1-J78/(Sheet2!B$23*2)>0,1-J78/(Sheet2!B$23*2),0) -> 0.425 | N78: =IF(ABS(J78)<Sheet2!B$24/2, 1, 0) -> 0 | O78: =IF(J78/(Sheet2!B$23*2)<1,J78/(Sheet2!B$23*2),0) -> 0.575
A79: 12.5 | B79: 0 | C79: 0 | D79: 0 | E79: 0 | F79: 0 | G79: 0 | H79: 0 | J79: 12.5 | K79: =EXP(-((J79)^2/(Sheet2!B$21^2*0.360673760222241))) -> 0.3385638867 | L79: =IF(1-ABS(J79)/Sheet2!B$22 >0, 1-ABS(J79)/Sheet2!B$22,0) -> 0 | M79: =IF(1-J79/(Sheet2!B$23*2)>0,1-J79/(Sheet2!B$23*2),0) -> 0.375 | N79: =IF(ABS(J79)<Sheet2!B$24/2, 1, 0) -> 0 | O79: =IF(J79/(Sheet2!B$23*2)<1,J79/(Sheet2!B$23*2),0) -> 0.625
A80: 13.5 | B80: 0 | C80: 0 | D80: 0 | E80: 0 | F80: 0 | G80: 0 | H80: 0 | J80: 13.5 | K80: =EXP(-((J80)^2/(Sheet2!B$21^2*0.360673760222241))) -> 0.2827306118 | L80: =IF(1-ABS(J80)/Sheet2!B$22 >0, 1-ABS(J80)/Sheet2!B$22,0) -> 0 | M80: =IF(1-J80/(Sheet2!B$23*2)>0,1-J80/(Sheet2!B$23*2),0) -> 0.325 | N80: =IF(ABS(J80)<Sheet2!B$24/2, 1, 0) -> 0 | O80: =IF(J80/(Sheet2!B$23*2)<1,J80/(Sheet2!B$23*2),0) -> 0.675
A81: 14.5 | B81: 0 | C81: 0 | D81: 0 | E81: 0 | F81: 0 | G81: 0 | H81: 0 | J81: 14.5 | K81: =EXP(-((J81)^2/(Sheet2!B$21^2*0.360673760222241))) -> 0.2328543922 | L81: =IF(1-ABS(J81)/Sheet2!B$22 >0, 1-ABS(J81)/Sheet2!B$22,0) -> 0 | M81: =IF(1-J81/(Sheet2!B$23*2)>0,1-J81/(Sheet2!B$23*2),0) -> 0.275 | N81: =IF(ABS(J81)<Sheet2!B$24/2, 1, 0) -> 0 | O81: =IF(J81/(Sheet2!B$23*2)<1,J81/(Sheet2!B$23*2),0) -> 0.725
A82: 15.5 | B82: 0 | C82: 0 | D82: 0 | E82: 0 | F82: 0 | G82: 0 | H82: 0 | J82: 15.5 | K82: =EXP(-((J82)^2/(Sheet2!B$21^2*0.360673760222241))) -> 0.189136538 | L82: =IF(1-ABS(J82)/Sheet2!B$22 >0, 1-ABS(J82)/Sheet2!B$22,0) -> 0 | M82: =IF(1-J82/(Sheet2!B$23*2)>0,1-J82/(Sheet2!B$23*2),0) -> 0.225 | N82: =IF(ABS(J82)<Sheet2!B$24/2, 1, 0) -> 0 | O82: =IF(J82/(Sheet2!B$23*2)<1,J82/(Sheet2!B$23*2),0) -> 0.775
A83: 16.5 | B83: 0 | C83: 0 | D83: 0 | E83: 0 | F83: 0 | G83: 0 | H83: 0 | J83: 16.5 | K83: =EXP(-((J83)^2/(Sheet2!B$21^2*0.360673760222241))) -> 0.1515115834 | L83: =IF(1-ABS(J83)/Sheet2!B$22 >0, 1-ABS(J83)/Sheet2!B$22,0) -> 0 | M83: =IF(1-J83/(Sheet2!B$23*2)>0,1-J83/(Sheet2!B$23*2),0) -> 0.175 | N83: =IF(ABS(J83)<Sheet2!B$24/2, 1, 0) -> 0 | O83: =IF(J83/(Sheet2!B$23*2)<1,J83/(Sheet2!B$23*2),0) -> 0.825
A84: 17.5 | B84: 0 | C84: 0 | D84: 0 | E84: 0 | F84: 0 | G84: 0 | H84: 0 | J84: 17.5 | K84: =EXP(-((J84)^2/(Sheet2!B$21^2*0.360673760222241))) -> 0.1197004101 | L84: =IF(1-ABS(J84)/Sheet2!B$22 >0, 1-ABS(J84)/Sheet2!B$22,0) -> 0 | M84: =IF(1-J84/(Sheet2!B$23*2)>0,1-J84/(Sheet2!B$23*2),0) -> 0.125 | N84: =IF(ABS(J84)<Sheet2!B$24/2, 1, 0) -> 0 | O84: =IF(J84/(Sheet2!B$23*2)<1,J84/(Sheet2!B$23*2),0) -> 0.875
A85: 18.5 | B85: 0 | C85: 0 | D85: 0 | E85: 0 | F85: 0 | G85: 0 | H85: 0 | J85: 18.5 | K85: =EXP(-((J85)^2/(Sheet2!B$21^2*0.360673760222241))) -> 0.09326631971 | L85: =IF(1-ABS(J85)/Sheet2!B$22 >0, 1-ABS(J85)/Sheet2!B$22,0) -> 0 | M85: =IF(1-J85/(Sheet2!B$23*2)>0,1-J85/(Sheet2!B$23*2),0) -> 0.075 | N85: =IF(ABS(J85)<Sheet2!B$24/2, 1, 0) -> 0 | O85: =IF(J85/(Sheet2!B$23*2)<1,J85/(Sheet2!B$23*2),0) -> 0.925
A86: 19.5 | B86: 0 | C86: 0 | D86: 0 | E86: 0 | F86: 0 | G86: 0 | H86: 0 | J86: 19.5 | K86: =EXP(-((J86)^2/(Sheet2!B$21^2*0.360673760222241))) -> 0.07166934601 | L86: =IF(1-ABS(J86)/Sheet2!B$22 >0, 1-ABS(J86)/Sheet2!B$22,0) -> 0 | M86: =IF(1-J86/(Sheet2!B$23*2)>0,1-J86/(Sheet2!B$23*2),0) -> 0.025 | N86: =IF(ABS(J86)<Sheet2!B$24/2, 1, 0) -> 0 | O86: =IF(J86/(Sheet2!B$23*2)<1,J86/(Sheet2!B$23*2),0) -> 0.975
A87: 20.5 | B87: 0 | C87: 0 | D87: 0 | E87: 0 | F87: 0 | G87: 0 | H87: 0 | J87: 20.5 | K87: =EXP(-((J87)^2/(Sheet2!B$21^2*0.360673760222241))) -> 0.05431520753 | L87: =IF(1-ABS(J87)/Sheet2!B$22 >0, 1-ABS(J87)/Sheet2!B$22,0) -> 0 | M87: =IF(1-J87/(Sheet2!B$23*2)>0,1-J87/(Sheet2!B$23*2),0) -> 0 | N87: =IF(ABS(J87)<Sheet2!B$24/2, 1, 0) -> 0 | O87: =IF(J87/(Sheet2!B$23*2)<1,J87/(Sheet2!B$23*2),0) -> 0
A88: 21.5 | B88: 0 | C88: 0 | D88: 0 | E88: 0 | F88: 0 | G88: 0 | H88: 0 | J88: 21.5 | K88: =EXP(-((J88)^2/(Sheet2!B$21^2*0.360673760222241))) -> 0.04059652358 | L88: =IF(1-ABS(J88)/Sheet2!B$22 >0, 1-ABS(J88)/Sheet2!B$22,0) -> 0 | M88: =IF(1-J88/(Sheet2!B$23*2)>0,1-J88/(Sheet2!B$23*2),0) -> 0 | N88: =IF(ABS(J88)<Sheet2!B$24/2, 1, 0) -> 0 | O88: =IF(J88/(Sheet2!B$23*2)<1,J88/(Sheet2!B$23*2),0) -> 0
A89: 22.5 | B89: 0 | C89: 0 | D89: 0 | E89: 0 | F89: 0 | G89: 0 | H89: 0 | J89: 22.5 | K89: =EXP(-((J89)^2/(Sheet2!B$21^2*0.360673760222241))) -> 0.02992510252 | L89: =IF(1-ABS(J89)/Sheet2!B$22 >0, 1-ABS(J89)/Sheet2!B$22,0) -> 0 | M89: =IF(1-J89/(Sheet2!B$23*2)>0,1-J89/(Sheet2!B$23*2),0) -> 0 | N89: =IF(ABS(J89)<Sheet2!B$24/2, 1, 0) -> 0 | O89: =IF(J89/(Sheet2!B$23*2)<1,J89/(Sheet2!B$23*2),0) -> 0
A90: 23.5 | B90: 0 | C90: 0 | D90: 0 | E90: 0 | F90: 0 | G90: 0 | H90: 0 | J90: 23.5 | K90: =EXP(-((J90)^2/(Sheet2!B$21^2*0.360673760222241))) -> 0.02175513832 | L90: =IF(1-ABS(J90)/Sheet2!B$22 >0, 1-ABS(J90)/Sheet2!B$22,0) -> 0 | M90: =IF(1-J90/(Sheet2!B$23*2)>0,1-J90/(Sheet2!B$23*2),0) -> 0 | N90: =IF(ABS(J90)<Sheet2!B$24/2, 1, 0) -> 0 | O90: =IF(J90/(Sheet2!B$23*2)<1,J90/(Sheet2!B$23*2),0) -> 0
A91: 24.5 | B91: 0 | C91: 0 | D91: 0 | E91: 0 | F91: 0 | G91: 0 | H91: 0 | J91: 24.5 | K91: =EXP(-((J91)^2/(Sheet2!B$21^2*0.360673760222241))) -> 0.01559794738 | L91: =IF(1-ABS(J91)/Sheet2!B$22 >0, 1-ABS(J91)/Sheet2!B$22,0) -> 0 | M91: =IF(1-J91/(Sheet2!B$23*2)>0,1-J91/(Sheet2!B$23*2),0) -> 0 | N91: =IF(ABS(J91)<Sheet2!B$24/2, 1, 0) -> 0 | O91: =IF(J91/(Sheet2!B$23*2)<1,J91/(Sheet2!B$23*2),0) -> 0
A92: 25.5 | B92: 0 | C92: 0 | D92: 0 | E92: 0 | F92: 0 | G92: 0 | H92: 0 | J92: 25.5 | K92: =EXP(-((J92)^2/(Sheet2!B$21^2*0.360673760222241))) -> 0.01102941437 | L92: =IF(1-ABS(J92)/Sheet2!B$22 >0, 1-ABS(J92)/Sheet2!B$22,0) -> 0 | M92: =IF(1-J92/(Sheet2!B$23*2)>0,1-J92/(Sheet2!B$23*2),0) -> 0 | N92: =IF(ABS(J92)<Sheet2!B$24/2, 1, 0) -> 0 | O92: =IF(J92/(Sheet2!B$23*2)<1,J92/(Sheet2!B$23*2),0) -> 0
A93: 26.5 | B93: 0 | C93: 0 | D93: 0 | E93: 0 | F93: 0 | G93: 0 | H93: 0 | J93: 26.5 | K93: =EXP(-((J93)^2/(Sheet2!B$21^2*0.360673760222241))) -> 0.007691602917 | L93: =IF(1-ABS(J93)/Sheet2!B$22 >0, 1-ABS(J93)/Sheet2!B$22,0) -> 0 | M93: =IF(1-J93/(Sheet2!B$23*2)>0,1-J93/(Sheet2!B$23*2),0) -> 0 | N93: =IF(ABS(J93)<Sheet2!B$24/2, 1, 0) -> 0 | O93: =IF(J93/(Sheet2!B$23*2)<1,J93/(Sheet2!B$23*2),0) -> 0
A94: 27.5 | B94: 0 | C94: 0 | D94: 0 | E94: 0 | F94: 0 | G94: 0 | H94: 0 | J94: 27.5 | K94: =EXP(-((J94)^2/(Sheet2!B$21^2*0.360673760222241))) -> 0.00529006073 | L94: =IF(1-ABS(J94)/Sheet2!B$22 >0, 1-ABS(J94)/Sheet2!B$22,0) -> 0 | M94: =IF(1-J94/(Sheet2!B$23*2)>0,1-J94/(Sheet2!B$23*2),0) -> 0 | N94: =IF(ABS(J94)<Sheet2!B$24/2, 1, 0) -> 0 | O94: =IF(J94/(Sheet2!B$23*2)<1,J94/(Sheet2!B$23*2),0) -> 0
A95: 28.5 | B95: 0 | C95: 0 | D95: 0 | E95: 0 | F95: 0 | G95: 0 | H95: 0 | J95: 28.5 | K95: =EXP(-((J95)^2/(Sheet2!B$21^2*0.360673760222241))) -> 0.00358825964 | L95: =IF(1-ABS(J95)/Sheet2!B$22 >0, 1-ABS(J95)/Sheet2!B$22,0) -> 0 | M95: =IF(1-J95/(Sheet2!B$23*2)>0,1-J95/(Sheet2!B$23*2),0) -> 0 | N95: =IF(ABS(J95)<Sheet2!B$24/2, 1, 0) -> 0 | O95: =IF(J95/(Sheet2!B$23*2)<1,J95/(Sheet2!B$23*2),0) -> 0
A96: 29.5 | B96: 0 | C96: 0 | D96: 0 | E96: 0 | F96: 0 | G96: 0 | H96: 0 | J96: 29.5 | K96: =EXP(-((J96)^2/(Sheet2!B$21^2*0.360673760222241))) -> 0.002400415723 | L96: =IF(1-ABS(J96)/Sheet2!B$22 >0, 1-ABS(J96)/Sheet2!B$22,0) -> 0 | M96: =IF(1-J96/(Sheet2!B$23*2)>0,1-J96/(Sheet2!B$23*2),0) -> 0 | N96: =IF(ABS(J96)<Sheet2!B$24/2, 1, 0) -> 0 | O96: =IF(J96/(Sheet2!B$23*2)<1,J96/(Sheet2!B$23*2),0) -> 0
A97: 30.5 | B97: 0 | C97: 0 | D97: 0 | E97: 0 | F97: 0 | G97: 0 | H97: 0 | J97: 30.5 | K97: =EXP(-((J97)^2/(Sheet2!B$21^2*0.360673760222241))) -> 0.001583683768 | L97: =IF(1-ABS(J97)/Sheet2!B$22 >0, 1-ABS(J97)/Sheet2!B$22,0) -> 0 | M97: =IF(1-J97/(Sheet2!B$23*2)>0,1-J97/(Sheet2!B$23*2),0) -> 0 | N97: =IF(ABS(J97)<Sheet2!B$24/2, 1, 0) -> 0 | O97: =IF(J97/(Sheet2!B$23*2)<1,J97/(Sheet2!B$23*2),0) -> 0
A98: 31.5 | B98: 0 | C98: 0 | D98: 0 | E98: 0 | F98: 0 | G98: 0 | H98: 0 | J98: 31.5 | K98: =EXP(-((J98)^2/(Sheet2!B$21^2*0.360673760222241))) -> 0.001030456986 | L98: =IF(1-ABS(J98)/Sheet2!B$22 >0, 1-ABS(J98)/Sheet2!B$22,0) -> 0 | M98: =IF(1-J98/(Sheet2!B$23*2)>0,1-J98/(Sheet2!B$23*2),0) -> 0 | N98: =IF(ABS(J98)<Sheet2!B$24/2, 1, 0) -> 0 | O98: =IF(J98/(Sheet2!B$23*2)<1,J98/(Sheet2!B$23*2),0) -> 0
A99: 32.5 | B99: 0 | C99: 0 | D99: 0 | E99: 0 | F99: 0 | G99: 0 | H99: 0 | J99: 32.5 | K99: =EXP(-((J99)^2/(Sheet2!B$21^2*0.360673760222241))) -> 0.0006612575913 | L99: =IF(1-ABS(J99)/Sheet2!B$22 >0, 1-ABS(J99)/Sheet2!B$22,0) -> 0 | M99: =IF(1-J99/(Sheet2!B$23*2)>0,1-J99/(Sheet2!B$23*2),0) -> 0 | N99: =IF(ABS(J99)<Sheet2!B$24/2, 1, 0) -> 0 | O99: =IF(J99/(Sheet2!B$23*2)<1,J99/(Sheet2!B$23*2),0) -> 0
A100: 33.5 | B100: 0 | C100: 0 | D100: 0 | E100: 0 | F100: 0 | G100: 0 | H100: 0 | J100: 33.5 | K100: =EXP(-((J100)^2/(Sheet2!B$21^2*0.360673760222241))) -> 0.0004184955782 | L100: =IF(1-ABS(J100)/Sheet2!B$22 >0, 1-ABS(J100)/Sheet2!B$22,0) -> 0 | M100: =IF(1-J100/(Sheet2!B$23*2)>0,1-J100/(Sheet2!B$23*2),0) -> 0 | N100: =IF(ABS(J100)<Sheet2!B$24/2, 1, 0) -> 0 | O100: =IF(J100/(Sheet2!B$23*2)<1,J100/(Sheet2!B$23*2),0) -> 0
A101: 34.5 | B101: 0 | C101: 0 | D101: 0 | E101: 0 | F101: 0 | G101: 0 | H101: 0 | J101: 34.5 | K101: =EXP(-((J101)^2/(Sheet2!B$21^2*0.360673760222241))) -> 0.0002612104074 | L101: =IF(1-ABS(J101)/Sheet2!B$22 >0, 1-ABS(J101)/Sheet2!B$22,0) -> 0 | M101: =IF(1-J101/(Sheet2!B$23*2)>0,1-J101/(Sheet2!B$23*2),0) -> 0 | N101: =IF(ABS(J101)<Sheet2!B$24/2, 1, 0) -> 0 | O101: =IF(J101/(Sheet2!B$23*2)<1,J101/(Sheet2!B$23*2),0) -> 0
A102: 35.5 | B102: 0 | C102: 0 | D102: 0 | E102: 0 | F102: 0 | G102: 0 | H102: 0 | J102: 35.5 | K102: =EXP(-((J102)^2/(Sheet2!B$21^2*0.360673760222241))) -> 0.0001607938669 | L102: =IF(1-ABS(J102)/Sheet2!B$22 >0, 1-ABS(J102)/Sheet2!B$22,0) -> 0 | M102: =IF(1-J102/(Sheet2!B$23*2)>0,1-J102/(Sheet2!B$23*2),0) -> 0 | N102: =IF(ABS(J102)<Sheet2!B$24/2, 1, 0) -> 0 | O102: =IF(J102/(Sheet2!B$23*2)<1,J102/(Sheet2!B$23*2),0) -> 0
A103: 36.5 | B103: 0 | C103: 0 | D103: 0 | E103: 0 | F103: 0 | G103: 0 | H103: 0 | J103: 36.5 | K103: =EXP(-((J103)^2/(Sheet2!B$21^2*0.360673760222241))) -> 9.761754533e-05 | L103: =IF(1-ABS(J103)/Sheet2!B$22 >0, 1-ABS(J103)/Sheet2!B$22,0) -> 0 | M103: =IF(1-J103/(Sheet2!B$23*2)>0,1-J103/(Sheet2!B$23*2),0) -> 0 | N103: =IF(ABS(J103)<Sheet2!B$24/2, 1, 0) -> 0 | O103: =IF(J103/(Sheet2!B$23*2)<1,J103/(Sheet2!B$23*2),0) -> 0
A104: 37.5 | B104: 0 | C104: 0 | D104: 0 | E104: 0 | F104: 0 | G104: 0 | H104: 0 | J104: 37.5 | K104: =EXP(-((J104)^2/(Sheet2!B$21^2*0.360673760222241))) -> 5.844746586e-05 | L104: =IF(1-ABS(J104)/Sheet2!B$22 >0, 1-ABS(J104)/Sheet2!B$22,0) -> 0 | M104: =IF(1-J104/(Sheet2!B$23*2)>0,1-J104/(Sheet2!B$23*2),0) -> 0 | N104: =IF(ABS(J104)<Sheet2!B$24/2, 1, 0) -> 0 | O104: =IF(J104/(Sheet2!B$23*2)<1,J104/(Sheet2!B$23*2),0) -> 0
A105: 38.5 | B105: 0 | C105: 0 | D105: 0 | E105: 0 | F105: 0 | G105: 0 | H105: 0 | J105: 38.5 | K105: =EXP(-((J105)^2/(Sheet2!B$21^2*0.360673760222241))) -> 3.451301413e-05 | L105: =IF(1-ABS(J105)/Sheet2!B$22 >0, 1-ABS(J105)/Sheet2!B$22,0) -> 0 | M105: =IF(1-J105/(Sheet2!B$23*2)>0,1-J105/(Sheet2!B$23*2),0) -> 0 | N105: =IF(ABS(J105)<Sheet2!B$24/2, 1, 0) -> 0 | O105: =IF(J105/(Sheet2!B$23*2)<1,J105/(Sheet2!B$23*2),0) -> 0
A106: 39.5 | B106: 0 | C106: 0 | D106: 0 | E106: 0 | F106: 0 | G106: 0 | H106: 0 | J106: 39.5 | K106: =EXP(-((J106)^2/(Sheet2!B$21^2*0.360673760222241))) -> 2.009923336e-05 | L106: =IF(1-ABS(J106)/Sheet2!B$22 >0, 1-ABS(J106)/Sheet2!B$22,0) -> 0 | M106: =IF(1-J106/(Sheet2!B$23*2)>0,1-J106/(Sheet2!B$23*2),0) -> 0 | N106: =IF(ABS(J106)<Sheet2!B$24/2, 1, 0) -> 0 | O106: =IF(J106/(Sheet2!B$23*2)<1,J106/(Sheet2!B$23*2),0) -> 0
A107: 40.5 | B107: 0 | C107: 0 | D107: 0 | E107: 0 | F107: 0 | G107: 0 | H107: 0 | J107: 40.5 | K107: =EXP(-((J107)^2/(Sheet2!B$21^2*0.360673760222241))) -> 1.154397815e-05 | L107: =IF(1-ABS(J107)/Sheet2!B$22 >0, 1-ABS(J107)/Sheet2!B$22,0) -> 0 | M107: =IF(1-J107/(Sheet2!B$23*2)>0,1-J107/(Sheet2!B$23*2),0) -> 0 | N107: =IF(ABS(J107)<Sheet2!B$24/2, 1, 0) -> 0 | O107: =IF(J107/(Sheet2!B$23*2)<1,J107/(Sheet2!B$23*2),0) -> 0
A108: 41.5 | B108: 0 | C108: 0 | D108: 0 | E108: 0 | F108: 0 | G108: 0 | H108: 0 | J108: 41.5 | K108: =EXP(-((J108)^2/(Sheet2!B$21^2*0.360673760222241))) -> 6.53899341e-06 | L108: =IF(1-ABS(J108)/Sheet2!B$22 >0, 1-ABS(J108)/Sheet2!B$22,0) -> 0 | M108: =IF(1-J108/(Sheet2!B$23*2)>0,1-J108/(Sheet2!B$23*2),0) -> 0 | N108: =IF(ABS(J108)<Sheet2!B$24/2, 1, 0) -> 0 | O108: =IF(J108/(Sheet2!B$23*2)<1,J108/(Sheet2!B$23*2),0) -> 0
A109: 42.5 | B109: 0 | C109: 0 | D109: 0 | E109: 0 | F109: 0 | G109: 0 | H109: 0 | J109: 42.5 | K109: =EXP(-((J109)^2/(Sheet2!B$21^2*0.360673760222241))) -> 3.652966616e-06 | L109: =IF(1-ABS(J109)/Sheet2!B$22 >0, 1-ABS(J109)/Sheet2!B$22,0) -> 0 | M109: =IF(1-J109/(Sheet2!B$23*2)>0,1-J109/(Sheet2!B$23*2),0) -> 0 | N109: =IF(ABS(J109)<Sheet2!B$24/2, 1, 0) -> 0 | O109: =IF(J109/(Sheet2!B$23*2)<1,J109/(Sheet2!B$23*2),0) -> 0
A110: 43.5 | B110: 0 | C110: 0 | D110: 0 | E110: 0 | F110: 1 | G110: 0 | H110: 0 | J110: 43.5 | K110: =EXP(-((J110)^2/(Sheet2!B$21^2*0.360673760222241))) -> 2.012611301e-06 | L110: =IF(1-ABS(J110)/Sheet2!B$22 >0, 1-ABS(J110)/Sheet2!B$22,0) -> 0 | M110: =IF(1-J110/(Sheet2!B$23*2)>0,1-J110/(Sheet2!B$23*2),0) -> 0 | N110: =IF(ABS(J110)<Sheet2!B$24/2, 1, 0) -> 0 | O110: =IF(J110/(Sheet2!B$23*2)<1,J110/(Sheet2!B$23*2),0) -> 0
A111: 44.5 | B111: 0 | C111: 0 | D111: 0 | E111: 0 | F111: 1 | G111: 0 | H111: 0 | J111: 44.5 | K111: =EXP(-((J111)^2/(Sheet2!B$21^2*0.360673760222241))) -> 1.093587433e-06 | L111: =IF(1-ABS(J111)/Sheet2!B$22 >0, 1-ABS(J111)/Sheet2!B$22,0) -> 0 | M111: =IF(1-J111/(Sheet2!B$23*2)>0,1-J111/(Sheet2!B$23*2),0) -> 0 | N111: =IF(ABS(J111)<Sheet2!B$24/2, 1, 0) -> 0 | O111: =IF(J111/(Sheet2!B$23*2)<1,J111/(Sheet2!B$23*2),0) -> 0
A112: 45.5 | B112: 0 | C112: 0 | D112: 0 | E112: 0 | F112: 1 | G112: 0 | H112: 0 | J112: 45.5 | K112: =EXP(-((J112)^2/(Sheet2!B$21^2*0.360673760222241))) -> 5.860389948e-07 | L112: =IF(1-ABS(J112)/Sheet2!B$22 >0, 1-ABS(J112)/Sheet2!B$22,0) -> 0 | M112: =IF(1-J112/(Sheet2!B$23*2)>0,1-J112/(Sheet2!B$23*2),0) -> 0 | N112: =IF(ABS(J112)<Sheet2!B$24/2, 1, 0) -> 0 | O112: =IF(J112/(Sheet2!B$23*2)<1,J112/(Sheet2!B$23*2),0) -> 0
A113: 46.5 | B113: 0 | C113: 0 | D113: 0 | E113: 0 | F113: 1 | G113: 0 | H113: 0 | J113: 46.5 | K113: =EXP(-((J113)^2/(Sheet2!B$21^2*0.360673760222241))) -> 3.09726895e-07 | L113: =IF(1-ABS(J113)/Sheet2!B$22 >0, 1-ABS(J113)/Sheet2!B$22,0) -> 0 | M113: =IF(1-J113/(Sheet2!B$23*2)>0,1-J113/(Sheet2!B$23*2),0) -> 0 | N113: =IF(ABS(J113)<Sheet2!B$24/2, 1, 0) -> 0 | O113: =IF(J113/(Sheet2!B$23*2)<1,J113/(Sheet2!B$23*2),0) -> 0
A114: 47.5 | B114: 0 | C114: 0 | D114: 0 | E114: 0 | F114: 1 | G114: 0 | H114: 0 | J114: 47.5 | K114: =EXP(-((J114)^2/(Sheet2!B$21^2*0.360673760222241))) -> 1.614398416e-07 | L114: =IF(1-ABS(J114)/Sheet2!B$22 >0, 1-ABS(J114)/Sheet2!B$22,0) -> 0 | M114: =IF(1-J114/(Sheet2!B$23*2)>0,1-J114/(Sheet2!B$23*2),0) -> 0 | N114: =IF(ABS(J114)<Sheet2!B$24/2, 1, 0) -> 0 | O114: =IF(J114/(Sheet2!B$23*2)<1,J114/(Sheet2!B$23*2),0) -> 0
A115: 48.5 | B115: 0 | C115: 0 | D115: 0 | E115: 0 | F115: 1 | G115: 0 | H115: 0 | J115: 48.5 | K115: =EXP(-((J115)^2/(Sheet2!B$21^2*0.360673760222241))) -> 8.298926667e-08 | L115: =IF(1-ABS(J115)/Sheet2!B$22 >0, 1-ABS(J115)/Sheet2!B$22,0) -> 0 | M115: =IF(1-J115/(Sheet2!B$23*2)>0,1-J115/(Sheet2!B$23*2),0) -> 0 | N115: =IF(ABS(J115)<Sheet2!B$24/2, 1, 0) -> 0 | O115: =IF(J115/(Sheet2!B$23*2)<1,J115/(Sheet2!B$23*2),0) -> 0
A116: 49.5 | B116: 0 | C116: 0 | D116: 0 | E116: 0 | F116: 1 | G116: 0 | H116: 0 | J116: 49.5 | K116: =EXP(-((J116)^2/(Sheet2!B$21^2*0.360673760222241))) -> 4.207387683e-08 | L116: =IF(1-ABS(J116)/Sheet2!B$22 >0, 1-ABS(J116)/Sheet2!B$22,0) -> 0 | M116: =IF(1-J116/(Sheet2!B$23*2)>0,1-J116/(Sheet2!B$23*2),0) -> 0 | N116: =IF(ABS(J116)<Sheet2!B$24/2, 1, 0) -> 0 | O116: =IF(J116/(Sheet2!B$23*2)<1,J116/(Sheet2!B$23*2),0) -> 0
A117: 50.5 | B117: 0 | C117: 0 | D117: 0 | E117: 0 | F117: 1 | G117: 0 | H117: 0 | J117: 50.5 | K117: =EXP(-((J117)^2/(Sheet2!B$21^2*0.360673760222241))) -> 2.103693842e-08 | L117: =IF(1-ABS(J117)/Sheet2!B$22 >0, 1-ABS(J117)/Sheet2!B$22,0) -> 0 | M117: =IF(1-J117/(Sheet2!B$23*2)>0,1-J117/(Sheet2!B$23*2),0) -> 0 | N117: =IF(ABS(J117)<Sheet2!B$24/2, 1, 0) -> 0 | O117: =IF(J117/(Sheet2!B$23*2)<1,J117/(Sheet2!B$23*2),0) -> 0
A118: 51.5 | B118: 0 | C118: 0 | D118: 0 | E118: 0 | F118: 1 | G118: 0 | H118: 0 | J118: 51.5 | K118: =EXP(-((J118)^2/(Sheet2!B$21^2*0.360673760222241))) -> 1.037365833e-08 | L118: =IF(1-ABS(J118)/Sheet2!B$22 >0, 1-ABS(J118)/Sheet2!B$22,0) -> 0 | M118: =IF(1-J118/(Sheet2!B$23*2)>0,1-J118/(Sheet2!B$23*2),0) -> 0 | N118: =IF(ABS(J118)<Sheet2!B$24/2, 1, 0) -> 0 | O118: =IF(J118/(Sheet2!B$23*2)<1,J118/(Sheet2!B$23*2),0) -> 0
A119: 52.5 | B119: 0 | C119: 0 | D119: 0 | E119: 0 | F119: 1 | G119: 0 | H119: 0 | J119: 52.5 | K119: =EXP(-((J119)^2/(Sheet2!B$21^2*0.360673760222241))) -> 5.044995051e-09 | L119: =IF(1-ABS(J119)/Sheet2!B$22 >0, 1-ABS(J119)/Sheet2!B$22,0) -> 0 | M119: =IF(1-J119/(Sheet2!B$23*2)>0,1-J119/(Sheet2!B$23*2),0) -> 0 | N119: =IF(ABS(J119)<Sheet2!B$24/2, 1, 0) -> 0 | O119: =IF(J119/(Sheet2!B$23*2)<1,J119/(Sheet2!B$23*2),0) -> 0
A120: 53.5 | B120: 0 | C120: 0 | D120: 0 | E120: 0 | F120: 1 | G120: 0 | H120: 0 | J120: 53.5 | K120: =EXP(-((J120)^2/(Sheet2!B$21^2*0.360673760222241))) -> 2.419741367e-09 | L120: =IF(1-ABS(J120)/Sheet2!B$22 >0, 1-ABS(J120)/Sheet2!B$22,0) -> 0 | M120: =IF(1-J120/(Sheet2!B$23*2)>0,1-J120/(Sheet2!B$23*2),0) -> 0 | N120: =IF(ABS(J120)<Sheet2!B$24/2, 1, 0) -> 0 | O120: =IF(J120/(Sheet2!B$23*2)<1,J120/(Sheet2!B$23*2),0) -> 0
A121: 54.5 | B121: 0 | C121: 0 | D121: 0 | E121: 0 | F121: 1 | G121: 0 | H121: 0 | J121: 54.5 | K121: =EXP(-((J121)^2/(Sheet2!B$21^2*0.360673760222241))) -> 1.144607412e-09 | L121: =IF(1-ABS(J121)/Sheet2!B$22 >0, 1-ABS(J121)/Sheet2!B$22,0) -> 0 | M121: =IF(1-J121/(Sheet2!B$23*2)>0,1-J121/(Sheet2!B$23*2),0) -> 0 | N121: =IF(ABS(J121)<Sheet2!B$24/2, 1, 0) -> 0 | O121: =IF(J121/(Sheet2!B$23*2)<1,J121/(Sheet2!B$23*2),0) -> 0
A122: 55.5 | B122: 0 | C122: 0 | D122: 0 | E122: 0 | F122: 1 | G122: 0 | H122: 0 | J122: 55.5 | K122: =EXP(-((J122)^2/(Sheet2!B$21^2*0.360673760222241))) -> 5.339782388e-10 | L122: =IF(1-ABS(J122)/Sheet2!B$22 >0, 1-ABS(J122)/Sheet2!B$22,0) -> 0 | M122: =IF(1-J122/(Sheet2!B$23*2)>0,1-J122/(Sheet2!B$23*2),0) -> 0 | N122: =IF(ABS(J122)<Sheet2!B$24/2, 1, 0) -> 0 | O122: =IF(J122/(Sheet2!B$23*2)<1,J122/(Sheet2!B$23*2),0) -> 0
A123: 56.5 | B123: 0 | C123: 0 | D123: 0 | E123: 0 | F123: 1 | G123: 0 | H123: 0 | J123: 56.5 | K123: =EXP(-((J123)^2/(Sheet2!B$21^2*0.360673760222241))) -> 2.456800905e-10 | L123: =IF(1-ABS(J123)/Sheet2!B$22 >0, 1-ABS(J123)/Sheet2!B$22,0) -> 0 | M123: =IF(1-J123/(Sheet2!B$23*2)>0,1-J123/(Sheet2!B$23*2),0) -> 0 | N123: =IF(ABS(J123)<Sheet2!B$24/2, 1, 0) -> 0 | O123: =IF(J123/(Sheet2!B$23*2)<1,J123/(Sheet2!B$23*2),0) -> 0
A124: 57.5 | B124: 0 | C124: 0 | D124: 0 | E124: 0 | F124: 1 | G124: 0 | H124: 0 | J124: 57.5 | K124: =EXP(-((J124)^2/(Sheet2!B$21^2*0.360673760222241))) -> 1.114796941e-10 | L124: =IF(1-ABS(J124)/Sheet2!B$22 >0, 1-ABS(J124)/Sheet2!B$22,0) -> 0 | M124: =IF(1-J124/(Sheet2!B$23*2)>0,1-J124/(Sheet2!B$23*2),0) -> 0 | N124: =IF(ABS(J124)<Sheet2!B$24/2, 1, 0) -> 0 | O124: =IF(J124/(Sheet2!B$23*2)<1,J124/(Sheet2!B$23*2),0) -> 0
A125: 58.5 | B125: 0 | C125: 0 | D125: 0 | E125: 0 | F125: 1 | G125: 0 | H125: 0 | J125: 58.5 | K125: =EXP(-((J125)^2/(Sheet2!B$21^2*0.360673760222241))) -> 4.988856056e-11 | L125: =IF(1-ABS(J125)/Sheet2!B$22 >0, 1-ABS(J125)/Sheet2!B$22,0) -> 0 | M125: =IF(1-J125/(Sheet2!B$23*2)>0,1-J125/(Sheet2!B$23*2),0) -> 0 | N125: =IF(ABS(J125)<Sheet2!B$24/2, 1, 0) -> 0 | O125: =IF(J125/(Sheet2!B$23*2)<1,J125/(Sheet2!B$23*2),0) -> 0
A126: 59.5 | B126: 0 | C126: 0 | D126: 0 | E126: 0 | F126: 1 | G126: 0 | H126: 0 | J126: 59.5 | K126: =EXP(-((J126)^2/(Sheet2!B$21^2*0.360673760222241))) -> 2.201839094e-11 | L126: =IF(1-ABS(J126)/Sheet2!B$22 >0, 1-ABS(J126)/Sheet2!B$22,0) -> 0 | M126: =IF(1-J126/(Sheet2!B$23*2)>0,1-J126/(Sheet2!B$23*2),0) -> 0 | N126: =IF(ABS(J126)<Sheet2!B$24/2, 1, 0) -> 0 | O126: =IF(J126/(Sheet2!B$23*2)<1,J126/(Sheet2!B$23*2),0) -> 0
A127: 60.5 | B127: 0 | C127: 0 | D127: 0 | E127: 0 | F127: 1 | G127: 0 | H127: 0 | J127: 60.5 | K127: =EXP(-((J127)^2/(Sheet2!B$21^2*0.360673760222241))) -> 9.58406132e-12 | L127: =IF(1-ABS(J127)/Sheet2!B$22 >0, 1-ABS(J127)/Sheet2!B$22,0) -> 0 | M127: =IF(1-J127/(Sheet2!B$23*2)>0,1-J127/(Sheet2!B$23*2),0) -> 0 | N127: =IF(ABS(J127)<Sheet2!B$24/2, 1, 0) -> 0 | O127: =IF(J127/(Sheet2!B$23*2)<1,J127/(Sheet2!B$23*2),0) -> 0
A128: 61.5 | B128: 0 | C128: 0 | D128: 0 | E128: 0 | F128: 1 | G128: 0 | H128: 0 | J128: 61.5 | K128: =EXP(-((J128)^2/(Sheet2!B$21^2*0.360673760222241))) -> 4.114271895e-12 | L128: =IF(1-ABS(J128)/Sheet2!B$22 >0, 1-ABS(J128)/Sheet2!B$22,0) -> 0 | M128: =IF(1-J128/(Sheet2!B$23*2)>0,1-J128/(Sheet2!B$23*2),0) -> 0 | N128: =IF(ABS(J128)<Sheet2!B$24/2, 1, 0) -> 0 | O128: =IF(J128/(Sheet2!B$23*2)<1,J128/(Sheet2!B$23*2),0) -> 0
A129: 62.5 | B129: 0 | C129: 0 | D129: 0 | E129: 0 | F129: 1 | G129: 0 | H129: 0 | J129: 62.5 | K129: =EXP(-((J129)^2/(Sheet2!B$21^2*0.360673760222241))) -> 1.74187022e-12 | L129: =IF(1-ABS(J129)/Sheet2!B$22 >0, 1-ABS(J129)/Sheet2!B$22,0) -> 0 | M129: =IF(1-J129/(Sheet2!B$23*2)>0,1-J129/(Sheet2!B$23*2),0) -> 0 | N129: =IF(ABS(J129)<Sheet2!B$24/2, 1, 0) -> 0 | O129: =IF(J129/(Sheet2!B$23*2)<1,J129/(Sheet2!B$23*2),0) -> 0
A130: 63.5 | B130: 0 | C130: 0 | D130: 0 | E130: 0 | F130: 0 | G130: 0 | H130: 0 | J130: 63.5 | K130: =EXP(-((J130)^2/(Sheet2!B$21^2*0.360673760222241))) -> 7.273073891e-13 | L130: =IF(1-ABS(J130)/Sheet2!B$22 >0, 1-ABS(J130)/Sheet2!B$22,0) -> 0 | M130: =IF(1-J130/(Sheet2!B$23*2)>0,1-J130/(Sheet2!B$23*2),0) -> 0 | N130: =IF(ABS(J130)<Sheet2!B$24/2, 1, 0) -> 0 | O130: =IF(J130/(Sheet2!B$23*2)<1,J130/(Sheet2!B$23*2),0) -> 0
D131: =SUM(D3:D130) -> 20 | E131: =SUM(E3:E130) -> 0
